[Event "17th Memorial Lezcano Montalvo 2025"]
[Site "Gran Canaria"]
[Date "2025.04.14"]
[Round "3.1"]
[White "Alsina Leal, Daniel"]
[Black "Dubkov, Andrej"]
[Result "1/2-1/2"]
[Annotator "TA"]
[ECO "B12"]
[WhiteElo "2496"]
[BlackElo "2307"]
[PlyCount "44"]
[EventDate "2025.04.13"]
[EventType "swiss"]
[EventCountry "ESP"]
[SourceTitle "playchess.com"]
[Source "ChessBase"]
[SourceQuality "1"]
[TimeControl "5400+30"]

{[%evp 9,44,0,35,52,31,60,44,56,62,66,143,140,151,141,142,86,121,0,0,-88,-10,-18,-10,-10,-28,-23,0,-230,-225,-225,-214,-209,0,0,0,-193,0]} 1. e4 {[%emt 0:00:04]} c6 {[%emt 0:00:04]} 2. d4 {[%emt 0:00:09]} d5 {[%emt 0:00:07]} 3. e5 {[%emt 0:00:15]} c5 {[%emt 0:00:06]} 4. dxc5 {[%emt 0:00:15]} e6 {[%emt 0:00:07]} 5. c3 {[%emt 0:00:16]} Bxc5 {[%emt 0:01:00]} 6. Qg4 $1 {[%emt 0:00:59] B12: Caro-Kann: Advance Variation.} Ne7 {[%emt 0:04:43]} 7. b4 {[%emt 0:02:03]} Bb6 {[%emt 0:00:06]} 8. Qxg7 {[%emt 0:00:31] White is slightly better.} Rg8 {[%emt 0:00:07]} 9. Qxh7 {[%emt 0:00:15]} Nbc6 {[%emt 0:03:37]} (9... Qc7 $14) 10. Nf3 {[%emt 0:02:32]} Qc7 {[%emt 0:03:39]} 11. Bf4 {[%emt 0:04:32]} Bd7 {[%emt 0:00:12]} 12. Bd3 {[%emt 0:17:52]} (12. a4 $142) 12... O-O-O $146 {[%emt 0:00:08]} (12... Rxg2 13. Bg3 O-O-O 14. Kf1 Rxg3 15. hxg3 Nxe5 16. Nxe5 Qxe5 17. Qxf7 Nc6 18. Qf3 Nxb4 {0-1 Vidal del Rio,M (2113)-Jovic,S (2087) Titled Tuesday intern op 25th Apr Late blitz 2023 (9)}) 13. O-O {[%emt 0:06:14]} (13. Qxf7 $2 Rdf8 $19 (13... Rxg2 14. b5 $11)) (13. b5 $1 $16 {[%cal Rb5c6]}) 13... f5 $11 {[%emt 0:08:43] and ...Rh8 should not be overlooked} (13... Rh8 $5 14. Qg7 $8 (14. Qxf7 $2 Rhf8 $19) 14... f5 $14 (14... Rdg8 $2 15. Qf6 $18)) 14. Na3 {[%emt 0:26:12] [#]} (14. exf6 Qxf4 15. fxe7 Rxg2+ 16. Kh1 (16. Kxg2 Qg4+ 17. Kh1 Qxf3+ 18. Kg1 Qg4+ 19. Kh1 Rg8 $19) 16... Re8 $17 (16... Qxf3 $2 17. exd8=Q+ Bxd8 18. Nd2 $18)) (14. b5 $11 {remains equal.} Rh8 15. Qg7) 14... Rh8 {[%emt 0:00:42]} ({Black should try} 14... Ng6 $1 $17 {[%cal Rg6f4]} 15. Nb5 Nxf4 16. Nxc7 Bxc7) 15. Qg7 {[%emt 0:00:41]} Rdg8 {[%emt 0:01:20]} 16. Qf6 {[%emt 0:00:23]} Ng6 {[%emt 0:47:26]} 17. Bg3 {[%emt 0:07:00]} f4 {[%emt 0:07:55]} 18. Bxf4 {[%emt 0:04:09]} (18. Bxg6 $11 {and White has nothing to worry.} fxg3 19. hxg3) 18... Nxf4 $19 {[%emt 0:00:09]} 19. Qxf4 {[%emt 0:00:53] [#]} Rf8 $1 {[%emt 0:00:05]} 20. Qg3 {[%emt 0:10:56]} Rfg8 {[%emt 0:09:40][%mdl 1024] Black has strong compensation.} 21. Qf4 {[%emt 0:00:27]} ({Don't blunder} 21. Nb5 $2 Rxg3 22. Nxc7 Rxf3 23. gxf3 Nxe5 (23... Bxc7 $2 24. f4 $17) 24. Nxd5 exd5 $19 (24... Nxd3 $2 25. Rfd1 $17)) 21... Rf8 $1 {[%emt 0:00:05]} 22. Qg3 {[%emt 0:00:18] Nb5 would now be deadly.} Rfg8 $2 {[%emt 0:00:24] Never resign too early!   Weighted Error Value: White=0.28 (precise) /Black=0.27 (precise)   Loses game:     	White=1     	---        Missed win:     	---       	Black=1      Mistake:       	White=3     	Black=2      Inaccurate:     	---       	Black=1      OK:         	White=9     	Black=7      Strong:       	---       	Black=2} (22... Rhg8 $19 23. Qh3 (23. Bg6 $2 Ne7 $19) 23... Nxe5 24. Nxe5 Qxe5) 1/2-1/2

[Event "17th Memorial Lezcano Montalvo 2025"]
[Site "Gran Canaria"]
[Date "2025.04.14"]
[Round "3.2"]
[White "Korneev, Oleg"]
[Black "Fiorito, Fabian"]
[Result "1/2-1/2"]
[Annotator "RC"]
[ECO "C08"]
[WhiteElo "2466"]
[BlackElo "2268"]
[PlyCount "77"]
[EventDate "2025.04.13"]
[EventType "swiss"]
[EventCountry "ESP"]
[SourceTitle "playchess.com"]
[Source "ChessBase"]
[SourceQuality "1"]
[TimeControl "5400+30"]

1. e4 {[%emt 0:00:01]} e6 {[%emt 0:00:07]} 2. d4 {[%emt 0:00:25]} d5 {[%emt 0:00:02]} 3. Nd2 {[%emt 0:00:14]} a6 {[%emt 0:03:39]} 4. Ngf3 {[%emt 0:01:22]} c5 {[%emt 0:00:12]} 5. exd5 {[%emt 0:03:50]} exd5 {[%emt 0:00:09]} 6. Be2 {[%emt 0:00:02]} Nc6 {[%emt 0:01:01]} 7. O-O {[%emt 0:00:54]} cxd4 {[%emt 0:04:53]} 8. Re1 {[%emt 0:03:02]} Be7 {[%emt 0:01:56]} 9. Nb3 {[%emt 0:01:01]} Nf6 {[%emt 0:00:02]} 10. Nfxd4 {[%emt 0:00:59]} O-O {[%emt 0:01:01]} 11. Bf4 {[%emt 0:03:01]} Re8 {[%emt 0:02:05]} 12. Bf1 {[%emt 0:04:04]} Qb6 {[%emt 0:06:51]} 13. c3 {[%emt 0:01:26]} Bd7 {[%emt 0:02:01]} 14. Qd3 {[%emt 0:08:11]} Bf8 {[%emt 0:04:11]} 15. Rxe8 {[%emt 0:02:05]} Rxe8 {[%emt 0:01:06]} 16. Nxc6 {[%emt 0:00:54]} Qxc6 {[%emt 0:05:00]} 17. Nd4 {[%emt 0:01:44]} Qb6 {[%emt 0:02:26]} 18. Qc2 {[%emt 0:36:32]} Bc5 {[%emt 0:11:56]} 19. Rd1 {[%emt 0:00:11]} Bg4 {[%emt 0:04:57]} 20. f3 {[%emt 0:01:50]} Bd7 {[%emt 0:00:43]} 21. Bg3 {[%emt 0:03:59]} Bb5 {[%emt 0:11:40]} 22. Bf2 {[%emt 0:03:33]} Bxf1 {[%emt 0:00:39]} 23. Rxf1 {[%emt 0:06:10]} Qc7 {[%emt 0:06:34]} 24. Nf5 {[%emt 0:00:53]} Bxf2+ {[%emt 0:00:34]} 25. Qxf2 {[%emt 0:00:09]} Qe5 {[%emt 0:02:35]} 26. Nd4 {[%emt 0:00:26]} h5 {[%emt 0:01:35]} 27. Qd2 {[%emt 0:03:45]} g6 {[%emt 0:03:08]} 28. Rf2 {[%emt 0:02:39]} Qd6 {[%emt 0:03:01]} 29. Re2 {[%emt 0:02:59]} Rxe2 {[%emt 0:00:30]} 30. Nxe2 {[%emt 0:00:50]} Qe5 {[%emt 0:02:57]} 31. Nd4 {[%emt 0:01:22]} Kf8 {[%emt 0:05:24]} 32. g3 {[%emt 0:01:08]} Ke7 {[%emt 0:04:12]} 33. Kf2 {[%emt 0:00:15]} h4 {[%emt 0:01:48]} 34. Qe3 {[%emt 0:00:25]} hxg3+ {[%emt 0:00:02]} 35. hxg3 {[%emt 0:00:03]} Qxe3+ {[%emt 0:00:39]} 36. Kxe3 {[%emt 0:00:02]} Kd6 {[%emt 0:01:02]} 37. g4 {[%emt 0:00:33]} Nd7 {[%emt 0:01:06]} 38. b3 {[%emt 0:03:37]} Ne5 {[%emt 0:01:27]} 39. a4 {[%emt 0:03:43]} 1/2-1/2

[Event "17th Memorial Lezcano Montalvo 2025"]
[Site "Gran Canaria"]
[Date "2025.04.14"]
[Round "3.3"]
[White "Torres Rebolledo, Alvaro"]
[Black "Petriashvili, Nikoloz"]
[Result "0-1"]
[Annotator "RC"]
[ECO "B06"]
[WhiteElo "2311"]
[BlackElo "2459"]
[PlyCount "86"]
[EventDate "2025.04.13"]
[EventType "swiss"]
[EventCountry "ESP"]
[SourceTitle "playchess.com"]
[Source "ChessBase"]
[SourceQuality "1"]
[TimeControl "5400+30"]

1. e4 {[%emt 0:00:11]} g6 {[%emt 0:01:50]} 2. d4 {[%emt 0:01:15]} Bg7 {[%emt 0:00:26]} 3. Nc3 {[%emt 0:04:45]} d6 {[%emt 0:00:51]} 4. Be3 {[%emt 0:00:42]} a6 {[%emt 0:00:02]} 5. a4 {[%emt 0:01:28]} Nf6 {[%emt 0:00:24]} 6. f3 {[%emt 0:02:41]} O-O {[%emt 0:02:04]} 7. Nge2 {[%emt 0:01:23]} Nc6 {[%emt 0:01:52]} 8. Qd2 {[%emt 0:07:51]} Rb8 {[%emt 0:01:14]} 9. a5 {[%emt 0:04:32]} e5 {[%emt 0:05:31]} 10. d5 {[%emt 0:03:19]} Ne7 {[%emt 0:00:01]} 11. h4 {[%emt 0:03:34]} c6 {[%emt 0:01:00]} 12. Bb6 {[%emt 0:03:38]} Qd7 {[%emt 0:00:05]} 13. g4 {[%emt 0:07:56]} cxd5 {[%emt 0:00:47]} 14. g5 {[%emt 0:06:22]} Nh5 {[%emt 0:03:16]} 15. Nxd5 {[%emt 0:03:48]} Nxd5 {[%emt 0:00:54]} 16. Qxd5 {[%emt 0:00:31]} Re8 {[%emt 0:00:15]} 17. Bh3 {[%emt 0:02:26]} Qe7 {[%emt 0:00:21]} 18. Bxc8 {[%emt 0:01:01]} Rbxc8 {[%emt 0:00:18]} 19. O-O-O {[%emt 0:01:54]} Rc6 {[%emt 0:00:03]} 20. c3 {[%emt 0:01:17]} Qe6 {[%emt 0:01:16]} 21. Kb1 {[%emt 0:02:03]} Bf8 {[%emt 0:00:53]} 22. Rhf1 {[%emt 0:04:10]} Qxd5 {[%emt 0:01:44]} 23. Rxd5 {[%emt 0:00:15]} f6 {[%emt 0:00:05]} 24. gxf6 {[%emt 0:09:14]} Nxf6 {[%emt 0:00:28]} 25. Rd3 {[%emt 0:00:40]} Nh5 {[%emt 0:00:48]} 26. f4 {[%emt 0:04:38]} Rc4 {[%emt 0:09:24]} 27. fxe5 {[%emt 0:00:04]} dxe5 {[%emt 0:00:05]} 28. Rd7 {[%emt 0:04:56]} Rxe4 {[%emt 0:00:02]} 29. Nc1 {[%emt 0:00:30]} Rf4 {[%emt 0:02:05]} 30. Re1 {[%emt 0:04:22]} Rf7 {[%emt 0:00:42]} 31. Rd5 {[%emt 0:00:28]} e4 {[%emt 0:00:56]} 32. Nb3 {[%emt 0:02:08]} Bh6 {[%emt 0:02:01]} 33. Kc2 {[%emt 0:02:35]} e3 {[%emt 0:00:22]} 34. Nc1 {[%emt 0:00:37]} Rf2+ {[%emt 0:01:41]} 35. Kb3 {[%emt 0:01:08]} Rd2 {[%emt 0:01:26]} 36. c4 {[%emt 0:03:14]} Nf6 {[%emt 0:07:25]} 37. Rd4 {[%emt 0:00:54]} e2 {[%emt 0:04:28]} 38. Nd3 {[%emt 0:06:07]} Be3 {[%emt 0:05:28]} 39. Rd6 {[%emt 0:00:25]} Bf4 {[%emt 0:00:47]} 40. Rxf6 {[%emt 0:00:47]} Rxd3+ {[%emt 0:00:07]} 41. Kc2 {[%emt 0:00:05]} Rf3 {[%emt 0:01:14]} 42. Bd4 {[%emt 0:00:30]} Bg3 {[%emt 0:00:27]} 43. Rxf3 {[%emt 0:00:53]} Bxe1 {[%emt 0:00:03]} 0-1

[Event "17th Memorial Lezcano Montalvo 2025"]
[Site "Gran Canaria"]
[Date "2025.04.14"]
[Round "3.4"]
[White "Meneses Gonzalez, Kevin Moises"]
[Black "Larino Nieto, David"]
[Result "0-1"]
[Annotator "RC"]
[ECO "A15"]
[WhiteElo "2307"]
[BlackElo "2448"]
[PlyCount "62"]
[EventDate "2025.04.13"]
[EventType "swiss"]
[EventCountry "ESP"]
[SourceTitle "playchess.com"]
[Source "ChessBase"]
[SourceQuality "1"]
[TimeControl "5400+30"]

1. Nf3 {[%emt 0:00:02]} b6 {[%emt 0:13:41]} 2. c4 {[%emt 0:01:24]} Bb7 {[%emt 0:00:13]} 3. Nc3 {[%emt 0:00:04]} Nf6 {[%emt 0:00:37]} 4. g3 {[%emt 0:00:17]} e5 {[%emt 0:06:38]} 5. Bg2 {[%emt 0:01:16]} Bb4 {[%emt 0:01:21]} 6. O-O {[%emt 0:02:57]} Bxc3 {[%emt 0:00:19]} 7. bxc3 {[%emt 0:00:43]} d6 {[%emt 0:00:22]} 8. d3 {[%emt 0:07:56]} O-O {[%emt 0:00:12]} 9. e4 {[%emt 0:00:01]} Kh8 {[%emt 0:07:12]} 10. Nh4 {[%emt 0:02:03]} Ng8 {[%emt 0:01:06]} 11. Qg4 {[%emt 0:25:18]} Nd7 {[%emt 0:04:28]} 12. Bg5 {[%emt 0:00:31]} Qe8 {[%emt 0:03:57]} 13. Nf5 {[%emt 0:07:56]} g6 {[%emt 0:00:18]} 14. Bh6 {[%emt 0:08:11]} Nxh6 {[%emt 0:00:14]} 15. Nxh6 {[%emt 0:00:03]} Nc5 {[%emt 0:07:07]} 16. Rad1 {[%emt 0:06:23]} Qe7 {[%emt 0:04:11]} 17. f4 {[%emt 0:01:52]} f6 {[%emt 0:16:28]} 18. Qe2 {[%emt 0:12:37]} exf4 {[%emt 0:02:45]} 19. gxf4 {[%emt 0:10:29]} f5 {[%emt 0:00:21]} 20. Qe3 {[%emt 0:02:30]} Qg7 {[%emt 0:00:40]} 21. Qh3 {[%emt 0:01:21]} Rae8 {[%emt 0:00:27]} 22. exf5 {[%emt 0:02:58]} gxf5 {[%emt 0:00:10]} 23. Rf2 {[%emt 0:00:01]} Bc8 {[%emt 0:09:04]} 24. Qh5 {[%emt 0:02:06]} Bd7 {[%emt 0:00:38]} 25. Rf3 {[%emt 0:00:48]} Rf6 {[%emt 0:00:31]} 26. Rh3 {[%emt 0:00:06]} Rg6 {[%emt 0:01:53]} 27. Rd2 {[%emt 0:03:28]} Re1+ {[%emt 0:00:18]} 28. Kf2 {[%emt 0:00:01]} Rxg2+ {[%emt 0:00:15]} 29. Kxe1 {[%emt 0:00:01]} Rg1+ {[%emt 0:00:06]} 30. Kf2 {[%emt 0:00:18]} Qg2+ {[%emt 0:00:03]} 31. Ke3 {[%emt 0:00:03]} Re1+ {[%emt 0:00:06]} 0-1

[Event "17th Memorial Lezcano Montalvo 2025"]
[Site "Gran Canaria"]
[Date "2025.04.14"]
[Round "3.5"]
[White "Pap, Misa"]
[Black "Hernando Rodrigo, Jose Maria"]
[Result "1-0"]
[Annotator "RC"]
[ECO "B45"]
[WhiteElo "2444"]
[BlackElo "2256"]
[PlyCount "56"]
[EventDate "2025.04.13"]
[EventType "swiss"]
[EventCountry "ESP"]
[SourceTitle "playchess.com"]
[Source "ChessBase"]
[SourceQuality "1"]
[TimeControl "5400+30"]

1. e4 {[%emt 0:05:57]} c5 {[%emt 0:00:07]} 2. Nf3 {[%emt 0:00:33]} e6 {[%emt 0:00:54]} 3. Nc3 {[%emt 0:02:16]} Nc6 {[%emt 0:00:35]} 4. d4 {[%emt 0:00:17]} cxd4 {[%emt 0:00:06]} 5. Nxd4 {[%emt 0:00:01]} Nf6 {[%emt 0:01:42]} 6. a3 {[%emt 0:00:04]} d5 {[%emt 0:19:40]} 7. Bb5 {[%emt 0:00:12]} Bd7 {[%emt 0:02:16]} 8. exd5 {[%emt 0:00:04]} Nxd4 {[%emt 0:02:34]} 9. Bxd7+ {[%emt 0:00:55]} Qxd7 {[%emt 0:00:07]} 10. Qxd4 {[%emt 0:00:07]} Nxd5 {[%emt 0:20:14]} 11. Nxd5 {[%emt 0:00:26]} Qxd5 {[%emt 0:00:05]} 12. Qxd5 {[%emt 0:00:13]} exd5 {[%emt 0:00:03]} 13. Be3 {[%emt 0:02:22]} b6 {[%emt 0:00:08]} 14. O-O-O {[%emt 0:02:06]} O-O-O {[%emt 0:00:19]} 15. Rd3 {[%emt 0:02:27]} Be7 {[%emt 0:01:45]} 16. Rhd1 {[%emt 0:00:41]} Bf6 {[%emt 0:00:18]} 17. Rxd5 {[%emt 0:00:22]} Rxd5 {[%emt 0:00:08]} 18. Rxd5 {[%emt 0:00:06]} Rd8 {[%emt 0:00:06]} 19. Rxd8+ {[%emt 0:01:49]} Kxd8 {[%emt 0:00:06]} 20. c4 {[%emt 0:00:38]} Kc7 {[%emt 0:03:26]} 21. b4 {[%emt 0:01:29]} g6 {[%emt 0:01:05]} 22. Kc2 {[%emt 0:00:45]} Be7 {[%emt 0:04:09]} 23. Kb3 {[%emt 0:00:50]} a6 {[%emt 0:08:59]} 24. a4 {[%emt 0:00:54]} a5 {[%emt 0:00:18]} 25. c5 {[%emt 0:02:21]} axb4 {[%emt 0:04:21]} 26. cxb6+ {[%emt 0:03:40]} Kb7 {[%emt 0:00:04]} 27. Kc4 {[%emt 0:07:13]} Ka6 {[%emt 0:01:57]} 28. g3 {[%emt 0:02:39]} Ka5 {[%emt 0:02:16]} 1-0

[Event "17th Memorial Lezcano Montalvo 2025"]
[Site "Gran Canaria"]
[Date "2025.04.14"]
[Round "3.6"]
[White "Castellanos Gomez, Alejandro"]
[Black "Martinez Ramirez, Lennis"]
[Result "0-1"]
[Annotator "RC"]
[ECO "A57"]
[WhiteElo "2267"]
[BlackElo "2443"]
[PlyCount "56"]
[EventDate "2025.04.13"]
[EventType "swiss"]
[EventCountry "ESP"]
[SourceTitle "playchess.com"]
[Source "ChessBase"]
[SourceQuality "1"]
[TimeControl "5400+30"]

1. d4 {[%emt 0:00:03]} Nf6 {[%emt 0:00:39]} 2. Nf3 {[%emt 0:00:07]} g6 {[%emt 0:00:55]} 3. g3 {[%emt 0:00:08]} c5 {[%emt 0:01:02]} 4. d5 {[%emt 0:00:52]} b5 {[%emt 0:01:31]} 5. c4 {[%emt 0:01:42]} bxc4 {[%emt 0:00:11]} 6. Nc3 {[%emt 0:01:26]} Bg7 {[%emt 0:01:22]} 7. Bg2 {[%emt 0:00:53]} d6 {[%emt 0:04:15]} 8. O-O {[%emt 0:01:37]} Nbd7 {[%emt 0:00:09]} 9. Nd2 {[%emt 0:04:57]} Nb6 {[%emt 0:02:53]} 10. e4 {[%emt 0:03:10]} O-O {[%emt 0:03:44]} 11. f4 {[%emt 0:05:42]} e6 {[%emt 0:03:05]} 12. dxe6 {[%emt 0:02:24]} Bxe6 {[%emt 0:00:07]} 13. f5 {[%emt 0:03:12]} Bd7 {[%emt 0:02:17]} 14. g4 {[%emt 0:03:38]} h6 {[%emt 0:02:43]} 15. h4 {[%emt 0:12:24]} Nh7 {[%emt 0:16:47]} 16. Nf3 {[%emt 0:02:27]} Bc6 {[%emt 0:01:22]} 17. Bf4 {[%emt 0:09:28]} d5 {[%emt 0:03:21]} 18. e5 {[%emt 0:03:42]} d4 {[%emt 0:00:38]} 19. f6 {[%emt 0:00:55]} Nxf6 {[%emt 0:03:36]} 20. exf6 {[%emt 0:00:14]} Qxf6 {[%emt 0:00:06]} 21. Be5 {[%emt 0:05:30]} Qe6 {[%emt 0:07:06]} 22. Bxg7 {[%emt 0:09:48]} Kxg7 {[%emt 0:00:39]} 23. Ne2 {[%emt 0:06:12]} Qxg4 {[%emt 0:01:06]} 24. Qd2 {[%emt 0:00:50]} Rae8 {[%emt 0:01:28]} 25. Qf4 {[%emt 0:02:06]} h5 {[%emt 0:00:01]} 26. Qd2 {[%emt 0:02:39]} c3 {[%emt 0:00:26]} 27. Qc2 {[%emt 0:03:11]} Be4 {[%emt 0:02:14]} 28. Qd1 {[%emt 0:01:17]} cxb2 {[%emt 0:00:05]} 0-1

[Event "17th Memorial Lezcano Montalvo 2025"]
[Site "Gran Canaria"]
[Date "2025.04.14"]
[Round "3.7"]
[White "Kovchan, Alexander"]
[Black "Rodriguez Avila, Alvaro"]
[Result "1-0"]
[Annotator "RC"]
[ECO "B67"]
[WhiteElo "2433"]
[BlackElo "2212"]
[PlyCount "67"]
[EventDate "2025.04.13"]
[EventType "swiss"]
[EventCountry "ESP"]
[SourceTitle "playchess.com"]
[Source "ChessBase"]
[SourceQuality "1"]
[TimeControl "5400+30"]

1. e4 {[%emt 0:03:45]} c5 {[%emt 0:00:10]} 2. Nf3 {[%emt 0:00:11]} d6 {[%emt 0:00:08]} 3. d4 {[%emt 0:00:12]} cxd4 {[%emt 0:00:11]} 4. Nxd4 {[%emt 0:00:06]} Nf6 {[%emt 0:00:10]} 5. Nc3 {[%emt 0:00:06]} Nc6 {[%emt 0:00:06]} 6. Bg5 {[%emt 0:00:06]} e6 {[%emt 0:00:09]} 7. Qd2 {[%emt 0:00:08]} a6 {[%emt 0:00:08]} 8. O-O-O {[%emt 0:00:37]} Bd7 {[%emt 0:00:26]} 9. f4 {[%emt 0:00:47]} b5 {[%emt 0:00:21]} 10. Bxf6 {[%emt 0:00:36]} gxf6 {[%emt 0:00:35]} 11. Kb1 {[%emt 0:01:19]} Qb6 {[%emt 0:00:59]} 12. Nxc6 {[%emt 0:01:16]} Bxc6 {[%emt 0:00:08]} 13. Qe1 {[%emt 0:00:28]} Be7 {[%emt 0:05:36]} 14. f5 {[%emt 0:06:01]} b4 {[%emt 0:20:29]} 15. Ne2 {[%emt 0:00:42]} e5 {[%emt 0:00:21]} 16. Nc1 {[%emt 0:10:43]} Qb7 {[%emt 0:06:52]} 17. Nb3 {[%emt 0:09:10]} a5 {[%emt 0:01:10]} 18. Nd2 {[%emt 0:00:36]} O-O-O {[%emt 0:09:29]} 19. Nc4 {[%emt 0:08:10]} Qc7 {[%emt 0:04:34]} 20. Ne3 {[%emt 0:10:53]} Kb8 {[%emt 0:11:53]} 21. Bc4 {[%emt 0:03:43]} Rc8 {[%emt 0:04:47]} 22. Bxf7 {[%emt 0:01:49]} Bxe4 {[%emt 0:02:36]} 23. Qe2 {[%emt 0:02:20]} Qb7 {[%emt 0:03:21]} 24. Rd2 {[%emt 0:03:17]} Rc5 {[%emt 0:04:12]} 25. Rhd1 {[%emt 0:00:32]} Rhc8 {[%emt 0:02:20]} 26. Be6 {[%emt 0:00:26]} R8c6 {[%emt 0:02:49]} 27. Qg4 {[%emt 0:02:09]} Rc7 {[%emt 0:06:55]} 28. Qg8+ {[%emt 0:00:43]} Ka7 {[%emt 0:00:23]} 29. Bd5 {[%emt 0:00:17]} Rxd5 {[%emt 0:08:22]} 30. Rxd5 {[%emt 0:03:51]} Qb6 {[%emt 0:02:33]} 31. Qe8 {[%emt 0:03:23]} Ka6 {[%emt 0:02:58]} 32. Qa8+ {[%emt 0:00:49]} Ra7 {[%emt 0:00:16]} 33. Qc8+ {[%emt 0:00:20]} Qb7 {[%emt 0:01:02]} 34. Qc4+ {[%emt 0:00:09]} 1-0

[Event "17th Memorial Lezcano Montalvo 2025"]
[Site "Gran Canaria"]
[Date "2025.04.14"]
[Round "3.8"]
[White "Moreno Diepa, Diego"]
[Black "Fiorito, Francisco"]
[Result "0-1"]
[Annotator "RC"]
[ECO "B06"]
[WhiteElo "2243"]
[BlackElo "2431"]
[PlyCount "114"]
[EventDate "2025.04.13"]
[EventType "swiss"]
[EventCountry "ESP"]
[SourceTitle "playchess.com"]
[Source "ChessBase"]
[SourceQuality "1"]
[TimeControl "5400+30"]

1. e4 {[%emt 0:00:04]} g6 {[%emt 0:00:11]} 2. d4 {[%emt 0:00:20]} c6 {[%emt 0:00:13]} 3. Nf3 {[%emt 0:01:11]} Bg7 {[%emt 0:00:40]} 4. Be2 {[%emt 0:00:52]} d5 {[%emt 0:00:23]} 5. exd5 {[%emt 0:03:25]} cxd5 {[%emt 0:00:09]} 6. O-O {[%emt 0:00:05]} Nc6 {[%emt 0:01:13]} 7. c3 {[%emt 0:00:21]} Bg4 {[%emt 0:00:45]} 8. Bf4 {[%emt 0:02:49]} Bxf3 {[%emt 0:01:42]} 9. Bxf3 {[%emt 0:01:09]} e6 {[%emt 0:00:34]} 10. h3 {[%emt 0:08:34]} Nge7 {[%emt 0:01:04]} 11. Nd2 {[%emt 0:00:32]} O-O {[%emt 0:00:28]} 12. Re1 {[%emt 0:02:26]} Re8 {[%emt 0:01:21]} 13. Nb3 {[%emt 0:01:12]} Nf5 {[%emt 0:01:19]} 14. Nc5 {[%emt 0:02:47]} b6 {[%emt 0:02:48]} 15. Nd3 {[%emt 0:00:15]} Rc8 {[%emt 0:02:33]} 16. Bh2 {[%emt 0:10:11]} Bf8 {[%emt 0:01:06]} 17. Qd2 {[%emt 0:04:43]} Bd6 {[%emt 0:00:56]} 18. Bxd6 {[%emt 0:00:16]} Nxd6 {[%emt 0:00:50]} 19. Re2 {[%emt 0:02:36]} Qh4 {[%emt 0:02:32]} 20. Rae1 {[%emt 0:01:40]} Nc4 {[%emt 0:00:40]} 21. Qc1 {[%emt 0:03:51]} Red8 {[%emt 0:01:01]} 22. Bg4 {[%emt 0:06:59]} Qf6 {[%emt 0:02:41]} 23. Qh6 {[%emt 0:02:21]} Qg7 {[%emt 0:01:23]} 24. Qh4 {[%emt 0:04:49]} Nd6 {[%emt 0:01:53]} 25. Bf3 {[%emt 0:03:32]} Nf5 {[%emt 0:00:36]} 26. Qf4 {[%emt 0:00:55]} Qh6 {[%emt 0:04:17]} 27. Qxh6 {[%emt 0:01:01]} Nxh6 {[%emt 0:00:04]} 28. g4 {[%emt 0:00:21]} Kg7 {[%emt 0:01:03]} 29. Bg2 {[%emt 0:00:05]} Ng8 {[%emt 0:00:16]} 30. f4 {[%emt 0:01:33]} Nge7 {[%emt 0:00:46]} 31. Bf1 {[%emt 0:03:58]} h5 {[%emt 0:01:57]} 32. f5 {[%emt 0:02:31]} gxf5 {[%emt 0:00:28]} 33. gxh5 {[%emt 0:00:04]} Kh6 {[%emt 0:00:08]} 34. Nf4 {[%emt 0:00:22]} Ng8 {[%emt 0:01:48]} 35. Rg2 {[%emt 0:02:41]} Kh7 {[%emt 0:02:29]} 36. Bd3 {[%emt 0:07:00]} Nf6 {[%emt 0:00:48]} 37. Kh2 {[%emt 0:05:37]} Ne4 {[%emt 0:00:30]} 38. Ba6 {[%emt 0:05:26]} Rb8 {[%emt 0:00:40]} 39. Bb5 {[%emt 0:01:56]} Ne7 {[%emt 0:00:08]} 40. Nd3 {[%emt 0:00:33]} Rg8 {[%emt 0:01:08]} 41. Rxg8 {[%emt 0:00:41]} Rxg8 {[%emt 0:00:13]} 42. Ne5 {[%emt 0:00:25]} Nd6 {[%emt 0:01:42]} 43. Bd3 {[%emt 0:00:32]} Rg7 {[%emt 0:04:03]} 44. a4 {[%emt 0:03:22]} Ng8 {[%emt 0:00:56]} 45. a5 {[%emt 0:02:45]} Nf6 {[%emt 0:01:37]} 46. axb6 {[%emt 0:00:03]} axb6 {[%emt 0:00:04]} 47. Ra1 {[%emt 0:01:59]} Nxh5 {[%emt 0:00:13]} 48. Ra6 {[%emt 0:00:03]} Nf4 {[%emt 0:02:38]} 49. Bf1 {[%emt 0:00:03]} Ne4 {[%emt 0:00:26]} 50. Nf3 {[%emt 0:00:23]} Rg3 {[%emt 0:05:54]} 51. Nd2 {[%emt 0:01:08]} Re3 {[%emt 0:00:40]} 52. Nxe4 {[%emt 0:00:02]} fxe4 {[%emt 0:00:09]} 53. Rxb6 {[%emt 0:00:04]} Rf3 {[%emt 0:01:09]} 54. Bg2 {[%emt 0:00:32]} Rd3 {[%emt 0:00:57]} 55. Bf1 {[%emt 0:00:11]} Rd1 {[%emt 0:01:39]} 56. Ba6 {[%emt 0:00:08]} e3 {[%emt 0:00:05]} 57. Kg3 {[%emt 0:00:17]} e2 {[%emt 0:00:15]} 0-1